Cogmind - Beta 13 @@@ ROGUE MODE // 2024.04.07 @ 19:41:08 Player: buwwet Result: Destroyed by H-55 Commando with Gauss Rifle Performance ------------- Evolutions (3) 1500 Regions Visited (6) 1200 Robots Destroyed (78) 390 Value Destroyed (2427) 2427 Prototype IDs (0) 0 Alien Tech Used (0) 0 Bonus (0) 0 TOTAL SCORE: 5517 Bonus ------- None Cogmind --------- Core Integrity 0/700 Matter 186/300 Energy 100/100 System Corruption 4% Temperature Cool (0) Movement Core (50) Location -7/Factory Parts ------- > --- POWER (1) -------- (None) > --- PROPULSION (4) --- (None) > --- UTILITY (5) ------ Hacking Suite > --- WEAPON (3) ------- (None) > --- INVENTORY (5) ---- Sensor Array Peak State ------------ > --- POWER ------------ Light Nuclear Core > --- PROPULSION ------- Aluminum Leg Aluminum Leg Carbon-fiber Leg Carbon-fiber Leg > --- UTILITY ---------- Improved Heat Sink Small Storage Unit Hardened Medium Armor Plating Hacking Suite System Shield > --- WEAPON ----------- Flak Gun Greatsword > --- INVENTORY -------- Nuclear Core Aluminum Leg Sensor Array Improved Medium Armor Plating Lightning Gun Gauss Cannon Improved Grenade Launcher [Rating: 38] Favorites ----------- Power Light Nuclear Core Engine Light Ion Engine Power Core Light Nuclear Core Propulsion Aluminum Leg Leg Aluminum Leg Wheel Wheel Utility Small Storage Unit Device Improved Heat Sink Storage Small Storage Unit Hackware Hacking Suite Protection Light Armor Plating Weapon Spread Laser Energy Gun Spread Laser Energy Cannon EM Pulse Cannon Ballistic Gun Gauss Rifle Ballistic Cannon Battle Cannon Launcher Improved Grenade Launcher Slashing Weapon Greatsword Build | -11 -10 -10 -9 -9 -8 -7 ------- Run | Yrd Mat Min Mat Min Mat Fac Slots Evolved 6 | . . . 2 . 2 2 Power . | . . . . . . . Propulsion 2 | . . . 1 . . 1 Utility 3 | . . . 1 . 1 1 Weapon 1 | . . . . . 1 . Parts Attached 78 | 8 6 5 7 3 17 32 Power 9 | 1 1 1 1 1 3 1 Engine 4 | 1 1 1 . . 1 . Core 5 | . . . 1 1 2 1 Reactor . | . . . . . . . Propulsion 28 | 4 3 1 2 2 6 10 Treads . | . . . . . . . Leg 26 | 3 3 1 2 2 6 9 Wheel 2 | 1 . . . . . 1 Hover . | . . . . . . . Flight . | . . . . . . . Utility 17 | 1 1 1 2 . 5 7 Device 5 | . . . . . 2 3 Storage 1 | 1 . . . . . . Processor . | . . . . . . . Hackware 2 | . . . . . 1 1 Protection 9 | . 1 1 2 . 2 3 Artifact . | . . . . . . . Weapon 24 | 2 1 2 2 . 3 14 Energy Gun 11 | 2 1 . 1 . 2 5 Energy Cannon 1 | . . . . . . 1 Ballistic Gun 5 | . . 1 . . 1 3 Ballistic Cannon 3 | . . 1 1 . . 1 Launcher 2 | . . . . . . 2 Special Weapon . | . . . . . . . Impact Weapon . | . . . . . . . Slashing Weapon 2 | . . . . . . 2 Piercing Weapon . | . . . . . . . Special Melee Weapon . | . . . . . . . Unidentified Prototypes . | . . . . . . . Parts Lost 42 | . 1 4 . 1 7 29 Power 4 | . 1 . . 1 . 2 Propulsion 14 | . . 1 . . 4 9 Utility 10 | . . 1 . . 1 8 Weapon 14 | . . 2 . . 2 10 Highest Loss Streak 18 | . 1 4 . 1 3 18 To Critical Strikes . | . . . . . . . Average Slot Usage (%) 93 | . 82 97 100 99 96 88 Engine 4 | . 8 14 6 . 2 . Core 5 | . . . 4 10 6 6 Leg 27 | . 28 27 33 33 26 22 Device 3 | . . . . . 6 8 Storage 10 | . 14 14 11 11 9 6 Hackware 4 | . . . . . 7 9 Protection 12 | . 2 13 22 22 12 7 Energy Gun 13 | . 28 23 3 11 15 8 Ballistic Gun 4 | . . . 7 . 3 7 Ballistic Cannon 4 | . . 1 11 11 5 1 Naked Turns . | . . . . . . . Heaviest Build 38 | 12 15 15 20 20 24 38 Greatest Support 50 | 20 20 20 30 30 30 50 Greatest Overweight (x) 2 | 1 . 1 . . 1 2 Average Overweight (x) . | . . . . . . . Largest Inventory Capacity 8 | 8 8 8 8 8 8 8 Average Capacity 7 | 7 8 8 8 8 8 7 Most Carried 8 | 3 8 8 8 8 8 8 Average Carried 6 | 1 5 7 7 8 7 6 Final Capacity 8 | 8 8 8 8 8 8 5 Final Carried 8 | 3 7 8 8 8 8 1 Class Distribution -------------------- 34% | Scavenger-Tank 33% | Scavenger-Mutant 27% | Mutant Dominant Class ---------------- Mutant | -10/Materials Mutant | -10/Mines Scavenger-Mutant | -9/Materials Scavenger-Mutant | -9/Mines Scavenger-Tank | -8/Materials Scavenger-Tank | -7/Factory Resources | -11 -10 -10 -9 -9 -8 -7 ----------- Run | Yrd Mat Min Mat Min Mat Fac Matter Collected 1584 | 189 140 81 213 203 280 478 Remotely . | . . . . . . . Salvage Created 2117 | . 378 133 213 185 441 767 Parts 140 | . 20 18 24 16 26 36 Haulers Intercepted 1 | . 1 . . . . . Recyclers Shooed 2 | . . . 1 . 1 . Parts Field Recycled . | . . . . . . . Retrieved Matter . | . . . . . . . Parts Self-Destructed . | . . . . . . . Prevented . | . . . . . . . Kills | -11 -10 -10 -9 -9 -8 -7 ------- Run | Yrd Mat Min Mat Min Mat Fac Combat Hostiles Destroyed 71 | . 10 8 9 12 14 18 Melee 3 | . . . . . . 3 Guns 35 | . 9 1 3 4 8 10 Cannons 27 | . . 5 6 8 6 2 AOE 5 | . . 2 . . . 3 Classes Destroyed 12 | . 3 . 3 1 2 3 Worker 2 | . . . . . . 2 Builder 4 | . . . 1 . 2 1 Hauler 1 | . 1 . . . . . Recycler 1 | . . . . . . 1 Operator 1 | . . . . . 1 . Watcher 1 | . . . 1 . . . Swarmer 26 | . 2 6 6 6 4 2 Grunt 31 | . 8 2 2 3 7 9 Sentry 4 | . . . 1 . 1 2 Hunter 4 | . . . . . 2 2 Programmer 3 | . . . . . . 3 Assembled 3 | . . . . 3 . . Best Kill Streak 8 | . 2 5 4 3 8 4 Combat Bots Only 5 | . 2 5 4 3 5 4 Max Kills in Single Turn 2 | . 1 2 1 1 2 2 Gunslinging . | . . . . . . . Exploded 2 | . . 2 . . . 2 Melee 1 | . . . . . . 1 Uniques/NPCs Destroyed . | . . . . . . . Combat | -11 -10 -10 -9 -9 -8 -7 -------- Run | Yrd Mat Min Mat Min Mat Fac Hostile Shots Fired 577 | . 38 44 51 33 109 302 Missed 170 | . 8 8 20 10 26 98 Damage Taken 5794 | . 334 373 288 255 940 3604 Core 998 | . 17 82 54 14 120 711 Absorbed by Shields 12 | . . . . . . 12 Regen/Repaired (Parts) 78 | . . . . . 78 . Core Remaining (%) 80 | 100 . 60 . 83 78 . Volleys Fired 202 | . 34 16 31 30 40 51 Largest 3 | . 2 2 2 2 3 3 Hottest 169 | . 100 90 79 79 169 166 Shots Fired 411 | . 68 21 55 53 87 127 Gun 272 | . 68 14 24 23 54 89 Cannon 134 | . . 7 31 30 33 33 Launcher 5 | . . . . . . 5 Special . | . . . . . . . Kinetic 177 | . . 7 47 30 36 57 Thermal 195 | . 65 9 8 23 51 39 Explosive 5 | . . . . . . 5 Electromagnetic 34 | . 3 5 . . . 26 Robot Hit Streak 14 | . 11 5 4 7 14 14 Robot Miss Streak 26 | . 2 2 5 6 26 7 Penetration Max 1 | . . . . . . 1 Secondary Targets 1 | . . . . . 1 . Max Gunslinging Chain 1 | . . . . . 1 . Shots Hit Robots 289 | . 50 12 28 27 65 107 Core Hits 204 | . 20 9 16 15 60 84 Critical Kills . | . . . . . . . Critical Parts Destroyed . | . . . . . . . Critical Strikes 15 | . 7 1 2 1 1 3 Burn 8 | . 7 1 . . . . Blast 5 | . . . 2 1 1 1 Sever 2 | . . . . . . 2 Melee Attacks 15 | . . . . . . 15 Impact . | . . . . . . . Slashing 15 | . . . . . . 15 Piercing . | . . . . . . . Sneak Attacks . | . . . . . . . Combat Hostiles . | . . . . . . . Follow-up Attacks . | . . . . . . . Damage Inflicted 5728 | . 638 212 517 470 1047 2844 Guns 2560 | . 638 70 131 145 522 1054 Cannons 1892 | . . 109 386 325 525 547 Explosions 761 | . . 33 . . . 728 Melee 510 | . . . . . . 510 Ramming 5 | . . . . . . 5 Kinetic 2388 | . . 109 475 325 543 936 Thermal 1986 | . 614 82 42 145 504 599 Explosive 613 | . . . . . . 613 Electromagnetic 226 | . 24 21 . . . 181 Impact . | . . . . . . . Slashing 510 | . . . . . . 510 Piercing . | . . . . . . . Highest Corruption 4 | . . . . . . 4 Average Corruption 2 | . . . . . . 2 Corruption Purged 1 | . . . . . . 1 Corruption Blocked . | . . . . . . . Effects 7 | . . . . . . 7 Message Errors 3 | . . . . . . 3 Matter Fused 2 | . . . . . . 2 Heat Flow Errors 1 | . . . . . . 1 Energy Discharges 1 | . . . . . . 1 Overload Shots . | . . . . . . . Overflow Damage 253 | . . . 40 4 17 192 Projectiles 110 | . . . 40 4 17 49 Explosions 108 | . . . . . . 108 Melee 35 | . . . . . . 35 Knockbacks 26 | . . . 5 8 8 5 Impact . | . . . . . . . Kinetic 21 | . . . 4 5 7 5 Secondary 5 | . . . 1 3 1 . Self-Inflicted Damage 302 | . . . . . . 302 Shots 6 | . . . . . . 6 Rammed . | . . . . . . . Targets Rammed 2 | . . . . . . 2 Kicked 2 | . . . . . . 2 Crushed . | . . . . . . . Highest Temperature 380 | . 286 148 212 198 380 343 Average Temperature 98 | . 84 59 83 68 142 106 Received Heat Transfer 1371 | . 159 93 42 36 198 843 Effects 13 | . 1 . 1 . 8 3 Shutdowns 1 | . . . . . 1 . Energy Bleed 2 | . 1 . . . 1 . Interference 9 | . . . 1 . 6 2 Matter Decay 1 | . . . . . . 1 Siege Activations . | . . . . . . . Robots Corrupted . | . . . . . . . Combat Hostiles . | . . . . . . . Parts Fried . | . . . . . . . Impact Corruptions . | . . . . . . . Robots Melted 2 | . 2 . . . . . Combat Hostiles 1 | . 1 . . . . . Parts Melted 9 | . 9 . . . . . Heat Transferred 4574 | . 2331 322 100 325 735 761 Parts Sabotaged . | . . . . . . . Parts Stolen . | . . . . . . . Parts Stripped . | . . . . . . . Power Chain Reactions 2 | . . 1 . . . 1 Alert | -11 -10 -10 -9 -9 -8 -7 ------- Run | Yrd Mat Min Mat Min Mat Fac Peak Influence 329 | . 182 195 206 329 325 273 Initial 65 | . . 24 . 65 50 25 Average 96 | . 46 72 59 174 125 96 Maximum Alert Level 1 | . . . 1 1 1 1 Low Security (%) 90 | 100 100 100 94 73 80 92 Level 1 9 | . . . 5 26 19 7 Level 2 . | . . . . . . . Level 3 . | . . . . . . . Level 4 . | . . . . . . . Level 5 . | . . . . . . . High Security . | . . . . . . . Max Security . | . . . . . . . Squads Dispatched 10 | . 2 . 2 . 2 4 Investigation 1 | . 1 . . . . . Extermination 2 | . . . . . . 2 Reinforcement 7 | . 1 . 2 . 2 2 Assault . | . . . . . . . Garrison . | . . . . . . . Intercept . | . . . . . . . Searches Triggered . | . . . . . . . Construction Impeded . | . . . . . . . Haulers Reinforced . | . . . . . . . Active Scanning Responses . | . . . . . . . Cargo Convoy Interrupts . | . . . . . . . Stealth | -11 -10 -10 -9 -9 -8 -7 --------- Run | Yrd Mat Min Mat Min Mat Fac Distress Signals 7 | . . . 4 . 1 2 Communications Jammed . | . . . . . . . Distress Signals . | . . . . . . . Times Spotted 112 | . 19 9 20 15 19 30 Peak Tracking Total 7 | . 4 5 6 6 7 5 Tactical Retreats 13 | . 3 1 4 1 . 4 Traps | -11 -10 -10 -9 -9 -8 -7 ------- Run | Yrd Mat Min Mat Min Mat Fac Traps Triggered 7 | . 2 . . . 1 4 Indirectly . | . . . . . . . Trap Hack Attempts . | . . . . . . . Triggered . | . . . . . . . Disarmed . | . . . . . . . Reprogrammed . | . . . . . . . Reused . | . . . . . . . Traps Extracted . | . . . . . . . Installed . | . . . . . . . Triggered . | . . . . . . . Machines | -11 -10 -10 -9 -9 -8 -7 ---------- Run | Yrd Mat Min Mat Min Mat Fac Machines Disabled 14 | . . . . . 1 13 Max in Single Turn 8 | . . . . . 1 8 Machines Repaired . | . . . . . . . Machines Dismantled . | . . . . . . . Machines Sabotaged . | . . . . . . . Overloaded Fab Kills . | . . . . . . . Hacking | -11 -10 -10 -9 -9 -8 -7 --------- Run | Yrd Mat Min Mat Min Mat Fac Machines Accessed 15 | . 6 . 3 . 3 3 Terminals 12 | . 6 . 2 . 2 2 Fabricators . | . . . . . . . Repair Stations 1 | . . . . . 1 . Recycling Units . | . . . . . . . Scanalyzers 2 | . . . 1 . . 1 Garrison Access . | . . . . . . . Total Hacks 45 | . 16 . 12 . 10 7 Successful 24 | . 8 . 8 . 4 4 Failed 21 | . 8 . 4 . 6 3 Catastrophic 6 | . 2 . 1 . 2 1 Database Lockouts . | . . . . . . . Manual 25 | . 11 . 6 . 6 2 Terminals 32 | . 16 . 6 . 7 3 Fabricators . | . . . . . . . Repair Stations 3 | . . . . . 3 . Recycling Units . | . . . . . . . Scanalyzers 10 | . . . 6 . . 4 Garrison Access . | . . . . . . . Terminal Hacks 13 | . 8 . 2 . 2 1 Record 5 | . 3 . . . 1 1 Branch Access Points 2 | . 1 . 1 . . . Emergency Access Points 1 | . 1 . . . . . Unreport Threat 3 | . 2 . . . 1 . Recall Reinforcements 1 | . . . 1 . . . Hauler Manifests 1 | . 1 . . . . . Fabricator Hacks . | . . . . . . . Repair Station Hacks 2 | . . . . . 2 . Scan Component 1 | . . . . . 1 . Repair 1 | . . . . . 1 . Recycling Unit Hacks . | . . . . . . . Scanalyzer 9 | . . . 6 . . 3 Insert Component 5 | . . . 3 . . 2 Analyze 4 | . . . 3 . . 1 Garrison Access Hacks . | . . . . . . . Unauthorized Hacks . | . . . . . . . Terminals . | . . . . . . . Fabricators . | . . . . . . . Repair Stations . | . . . . . . . Recycling Units . | . . . . . . . Scanalyzers . | . . . . . . . Garrison Access . | . . . . . . . Data Cores Recovered . | . . . . . . . Used . | . . . . . . . Hacking Detections 13 | . 5 . 2 . 3 3 Full Trace Events . | . . . . . . . Feedback Events . | . . . . . . . Feedback Blocked . | . . . . . . . Robot Schematics Acquired . | . . . . . . . Robots Built . | . . . . . . . Authchips . | . . . . . . . Time . | . . . . . . . Total Robot Build Rating . | . . . . . . . Part Schematics Acquired 4 | . . . 3 . . 1 Parts Built . | . . . . . . . Authchips . | . . . . . . . Time . | . . . . . . . Total Part Build Rating . | . . . . . . . Parts Repaired 1 | . . . . . 1 . Time 13 | . . . . . 13 . Parts Recycled . | . . . . . . . Recycled Matter . | . . . . . . . Retrieved Matter . | . . . . . . . Retrieved Components . | . . . . . . . Parts Scanalyzed 5 | . . . 3 . . 2 Part Schematics Acquired 4 | . . . 3 . . 1 Parts Damaged . | . . . . . . . Bothacking | -11 -10 -10 -9 -9 -8 -7 ------------ Run | Yrd Mat Min Mat Min Mat Fac Used RIF Installer . | . . . . . . . Robots Hacked . | . . . . . . . Non-combat . | . . . . . . . Combat . | . . . . . . . Robot Hacks Applied . | . . . . . . . Relay Couplers Released . | . . . . . . . Fabnet Peak Effective % . | . . . . . . . Robots Rewired . | . . . . . . . Allies Hacked . | . . . . . . . Hacks Repelled . | . . . . . . . Allies | -11 -10 -10 -9 -9 -8 -7 -------- Run | Yrd Mat Min Mat Min Mat Fac Total Allies . | . . . . . . . Largest Group . | . . . . . . . Highest-Rated Group . | . . . . . . . Highest-Rated Ally . | . . . . . . . Total Orders . | . . . . . . . Ally Attacks . | . . . . . . . Total Damage . | . . . . . . . Kills . | . . . . . . . Allies Corrupted . | . . . . . . . Allies Melted . | . . . . . . . Intel | -11 -10 -10 -9 -9 -8 -7 ------- Run | Yrd Mat Min Mat Min Mat Fac Robot Analysis Total . | . . . . . . . Derelict Logs Recovered 3 | . . 1 . 2 . . Drone Launches . | . . . . . . . Drone Recoveries . | . . . . . . . Exploration | -11 -10 -10 -9 -9 -8 -7 ------------- Run | Yrd Mat Min Mat Min Mat Fac Turns Passed 4296 | 84 611 432 544 606 751 1268 Spaces Moved 2640 | 61 319 297 326 422 450 765 Core 23 | 5 . . . . . 18 Treads . | . . . . . . . Legs 2604 | 43 319 297 326 422 450 747 Wheels 13 | 13 . . . . . . Hover . | . . . . . . . Flight . | . . . . . . . Fastest Speed 50 | 50 120 120 120 120 120 120 Average Speed 121 | 115 120 120 120 120 120 124 Slowest Speed 190 | 190 120 190 120 120 190 190 Overloaded Moves . | . . . . . . . Propulsion Burnouts . | . . . . . . . Robots Hopped . | . . . . . . . Cave-ins Triggered . | . . . . . . . Exploration Rate (%) 43 | 4 76 72 26 69 34 25 Regions Visited 6 Branch Regions 2 Pre-discovered Areas 1 | . . 1 . . . . Known Exits Taken 2 | . 1 . 1 . . . Unknown Exits Taken 4 | 1 . 1 . 1 1 . Scrap Searched 2 | . . 1 . 1 . . Spaces Dug . | . . . . . . . Terrain Destroyed 82 | . . 6 7 8 3 58 Melee . | . . . . . . . Projectile 20 | . . 1 7 8 3 1 AOE 62 | . . 5 . . . 57 Terrain Rammed . | . . . . . . . Walls Destroyed . | . . . . . . . Machines Disabled . | . . . . . . . Actions | -11 -10 -10 -9 -9 -8 -7 --------- Run | Yrd Mat Min Mat Min Mat Fac Total 3337 | 71 482 349 429 469 586 951 Wait 321 | . 107 26 56 13 62 57 Move 2634 | 60 318 296 325 421 449 765 Hop . | . . . . . . . Pick Up 41 | 2 10 4 4 . 10 11 Fast Attach 25 | 7 2 2 1 1 2 10 Attach 33 | . 1 2 4 . 9 17 Detach 5 | 1 . . 2 . 1 1 Swap 20 | 1 3 1 2 2 6 5 Drop 35 | . 7 2 4 2 7 13 Fire 202 | . 34 16 31 30 40 51 Melee 15 | . . . . . . 15 Ram . | . . . . . . . Kick 2 | . . . . . . 2 Crush . | . . . . . . . Escape Stasis 4 | . . . . . . 4 Rewire . | . . . . . . . Trap . | . . . . . . . Miscellaneous . | . . . . . . . Route ------- -11/Scrapyard -10/Materials (discovered 4 exits: *Mat x2 / *Min x2) -10/Mines (discovered 2 exits: *Mat x2) -9/Materials (discovered 3 exits: *Min x2 / Sto) -9/Mines (discovered 2 exits: *Mat x2) -8/Materials -7/Factory History --------- Turn | Location | Event 18 | -11/Scrapyard | Discovered new exit (range 16) 85 | -11/Scrapyard | Entered Materials 131 | -10/Materials | Identified exit to Mines 283 | -10/Materials | Discovered new exit (range 16) 314 | -10/Materials | Build established: Mutant 482 | -10/Materials | Discovered new exit (range 15) 696 | -10/Materials | Entered Mines 761 | -10/Mines | Learned location of Zion (-7) 849 | -10/Mines | Discovered new exit (range 4) 993 | -10/Mines | A weapon hastily lodged in a ceiling crevice suddenly fell to the ground 1102 | -10/Mines | Lost 4 parts (1n1u2w) 1111 | -10/Mines | Discovered new exit (range 8) 1128 | -10/Mines | Entered Materials 1128 | -9/Materials | Evolved 2 slots: Propulsion x1, Utility x1 1195 | -9/Materials | Identified exit to Mines 1195 | -9/Materials | Identified exit to Storage 1435 | -9/Materials | Build established: Scavenger-Mutant 1672 | -9/Materials | Entered Mines 1713 | -9/Mines | Discovered new exit (range 7) 1814 | -9/Mines | Discovered new exit (range 15) 1935 | -9/Mines | Assembled infested the area 1979 | -9/Mines | Learned location of 1 exit from Proximity Caves 1982 | -9/Mines | Learned Materials terminal intel 2278 | -9/Mines | Entered Materials 2278 | -8/Materials | Evolved 2 slots: Utility x1, Weapon x1 2279 | -8/Materials | Loaded intel: 12 terminal locations 2745 | -8/Materials | Lost 3 parts (2n1w) 2785 | -8/Materials | Discovered new exit (range 13) 2917 | -8/Materials | Repaired Aluminum Leg 3021 | -8/Materials | Build established: Scavenger-Tank 3029 | -8/Materials | Entered Factory 3029 | -7/Factory | Evolved 2 slots: Propulsion x1, Utility x1 3349 | -7/Factory | Lost 4 parts (1n2u1w) 4229 | -7/Factory | Core integrity fell below 50% 4239 | -7/Factory | Core integrity fell below 20% 4297 | -7/Factory | Destroyed by H-55 Commando with Gauss Rifle Last Messages --------------- 04243_ Acquired Aluminum Leg. 04245_ The unstable cave ceiling collapses. 04248_ Acquired Energy Filter. 04250_ Dropped Energy Filter. 04253_ The unstable cave ceiling collapses. 04260_ Penetrated by Slug. 04260_ Aluminum Leg destroyed. 04263_ Penetrated by Slug. 04263_ System Shield destroyed. 04266_ Penetrated by Slug. 04267_ K-01 Serf collects debris. 04269_ Slug penetrates Wall. 04281_ 9M85NTAHOXD3P:#T3V4%A8H19PCX# 04281_ Penetrated by Slug. 04284_ Sml. Storage Unit destroyed. 04287_ Penetrated by Slug. 04287_ Flak Gun destroyed. 04290_ Penetrated by Slug. 04294_ Slug penetrates Wall. 04297_ Penetrated by Slug. Map ----- +----------------------------------------------------+ | ?????????????????????????????????????????????????? | | ?????????????????????????????????????????????????? | | ?????????????????????????????????????????????????? | | ?????????????????????????????????????????????????? | | ?????????????????????????????????????????????????? | | ?????????????????????????????????????????????????? | | ??????????????? ??????????????????????????????? | | ?????????????? #????????????????????????????? | | ?????????????? #????????????????????????????? | | ?????????????? #????????????????????????????? | | ?????????????? #????????????????????????????? | | ??????????????# #????????????????????????????? | | ??????????????# #????????????????????????????? | | ??????????????# #????????????????????????????? | | ??????????????# #????????????????????????????? | | ??????????????# #????????????????????????????? | | ??????????????# #????????????????????????????? | | ????????????### #????????????????????????????? | | ????????##### # #????????????????????????????? | | ????????## #????????????????????????????? | | ????##### # ##############???????????????? | | ????# % # !#???????????????? | | ????# ! # "" """ #???????????????? | | ????# # "T """"" #???????????????? | | ????# # "" """"" #???????????????? | | ????# /h @ #???????????????? | | ????# " ##############???????????????? | | ????# " # #????????????????????????????? | | ????# "" # #????????????????????????????? | | ?###### # #????????????????????????????? | | ?# # #????????????????????????????? | | ?# # #????????????????????????????? | | ?# # #????????????????????????????? | | ?# # #????????????????????????????? | | ?# # #????????????????????????????? | | ?# #????????????????????????????? | | ?# # #????????????????????????????? | | ?# # #????????????????????????????? | | ?# ^#????????????????????????????? | | ?# #????????????????????????????? | | ?# #????????????????????????????? | | ?# #????????????????????????????? | | ?##### # #########################+#### | | ##"#" ## # | | % ## """""" """""" # | | ## """""" """""" # "" !! | | % *!## """""" """""" # """ !! | | =%## """""" """""" # "T !! | | ==## # """ | | #### * ## ! # "" "" | +----------------------------------------------------+ Best States ------------- Heat Dissipation 48 Energy Generation 14 Energy Capacity 240 Matter Stores 300 Matter Capacity 300 Sight Range 16 Robot Scan Range 14 Terrain Scan Density 10 Armor Coverage 300 Evasion (%) 55 Energy Filtering 30 Offensive Hacking 10 Defensive Hacking 10 Item Schematics ----------------- Lgt. Armor Plating | -9/Materials | Scanalyzed Aluminum Leg | -9/Materials | Scanalyzed Battle Cannon | -9/Materials | Scanalyzed System Shield | -7/Factory | Scanalyzed Robot Schematics ------------------ None Fabricated ------------ Nothing Alien Tech Used ----------------- None Achievements -------------- None Challenges ------------ None Game ------ Seed EtherialNuclearExpander Manual? 0 Play Time 01:00:03 Cumulative 14.5 hours Start 2024.04.07 @ 12:46:32 End 2024.04.07 @ 19:41:08 Sessions 7 Manual Loads 0 Difficulty Rogue Special Mode None Game No. 13 Rogue 13 Adventurer 0 Explorer 0 Win Type - Total 0 Types 0/0/0/0/0/0/0/0/0 Lore% 17 Gallery% 19 Achievement% 17 Wizard Run 0 Options --------- Layout 1 ASCII 0 Keyboard 0 Movement Arrows Keybinds 0 Fullscreen 1 Font 24/Tamsyn Map View 50x35 Zoom Use 0% Tactical HUD 1 Map Filters NONE Filters NONE Steam 1 RUN: 1a25fa02-7945-4e2e-aae2-9af362993dbb